fUSD/lending_fUSD_20251129
["ID","MTS","AMOUNT","RATE_DAILY","PERIOD"]
[395054324,1764381039152,-2500.0,0.00015039,2]
[395054326,1764381039162,-200.0,0.00015044,2]
[395054328,1764381039171,-844.752,0.00015044,2]
[395054330,1764381039181,-162.13,0.00015044,2]
[395054332,1764381039190,-300.0,0.00015047,2]
[395054334,1764381039199,-150.0,0.00015048,2]
[395054335,1764381039208,-150.0,0.00015048,2]
[395054336,1764381039217,-150.0,0.00015048,2]
[395054337,1764381039226,-2107.21242118,0.00015057,2]
[395054338,1764381039236,-150.0,0.0001511,2]
[395054339,1764381039245,-150.0,0.00015129,2]
[395054340,1764381039254,-151.0,0.0001513,2]
[395054341,1764381039263,-151.0,0.0001513,2]
[395054342,1764381039272,-151.0,0.0001513,2]
[395054343,1764381039281,-151.0,0.0001513,2]
[395054344,1764381039292,-151.0,0.0001513,2]
[395054345,1764381039304,-151.0,0.0001513,2]
[395054346,1764381039313,-151.0,0.0001513,2]
[395054347,1764381039323,-151.0,0.0001513,2]
[395054348,1764381039333,-151.0,0.0001513,2]
[395054349,1764381039343,-151.0,0.0001513,2]
[395054350,1764381039352,-151.0,0.0001513,2]
[395054351,1764381039362,-151.0,0.0001513,2]
[395054352,1764381039371,-151.0,0.0001513,2]
[395054353,1764381039381,-151.0,0.0001513,2]
[395054354,1764381039390,-151.0,0.0001513,2]
[395054355,1764381039399,-301.02040092,0.0001513,2]
[395054356,1764381039410,-958.42810337,0.00015138,2]
[395054357,1764381039419,-524.10593255,0.00015138,2]
[395054358,1764381039428,-520.46847253,0.00015138,2]
[395054359,1764381039437,-508.28778223,0.00015138,2]
[395054360,1764381039447,-500.0,0.00015138,2]
[395054361,1764381039456,-506.60490908,0.00015138,2]
[395054362,1764381039467,-500.0,0.00015138,2]
[395054363,1764381039475,-511.52425227,0.00015138,2]
[395054364,1764381039485,-513.9019136,0.00015138,2]
[395054365,1764381039494,-480.25077728,0.00015138,2]
[395054366,1764381039502,-500.0,0.00015138,2]
[395054367,1764381039513,-500.0,0.00015138,2]
[395054368,1764381039523,-509.6649128,0.00015138,2]
[395054369,1764381039532,-278.06258747,0.00015138,2]
[395054370,1764381039542,-150.0,0.00015157,2]
[395054371,1764381039551,-2896.70606073,0.00015157,2]
[395054372,1764381039560,-150.0,0.00015167,2]
[395054373,1764381039570,-150.0,0.00015188,2]
[395054374,1764381039579,-150.0,0.00015211,2]
[395054375,1764381039588,-500.0,0.00015239,2]
[395054376,1764381039598,-500.0,0.00015239,2]
[395054377,1764381039607,-500.0,0.00015239,2]
[395054378,1764381039616,-504.07023975,0.00015239,2]
[395054379,1764381039625,-542.29164668,0.00015239,2]
[395054380,1764381039635,-500.0,0.00015239,2]
[395054381,1764381039643,-272.16660441,0.00015239,2]
[395054382,1764381039652,-163.85703892,0.00015239,2]
[395054383,1764381039661,-500.0,0.00015239,2]
[395054384,1764381039670,-500.0,0.00015239,2]
[395054385,1764381039679,-500.0,0.00015239,2]
[395054386,1764381039688,-524.15106489,0.00015239,2]
[395054387,1764381039697,-500.0,0.00015239,2]
[395054388,1764381039706,-500.0,0.00015239,2]
[395054389,1764381039715,-500.0,0.00015239,2]
[395054390,1764381039724,-500.0,0.00015239,2]
[395054391,1764381039733,-500.0,0.00015239,2]
[395054392,1764381039743,-500.0,0.00015239,2]
[395054393,1764381039752,-500.0,0.00015239,2]
[395054394,1764381039761,-500.0,0.00015239,2]
[395054395,1764381039770,-500.0,0.00015239,2]
[395054396,1764381039779,-2107.21242112,0.00015262,2]
[395054397,1764381039788,-150.0,0.00015266,2]
[395054398,1764381039798,-150.0,0.00015266,2]
[395054399,1764381039815,-170.13,0.00015302,2]
[395054400,1764381039824,-1036.78,0.00015312,2]
[395054401,1764381039833,-150.0,0.00015315,2]
[395054402,1764381039843,-2500.0,0.0001533,2]
[395054403,1764381039852,-2500.0,0.0001533,2]
[395054404,1764381039863,-150.0,0.00015344,2]
[395054405,1764381039874,-2896.70606073,0.00015375,2]
[395054406,1764381039883,-150.0,0.00015375,2]
[395054407,1764381039892,-150.0,0.00015375,2]
[395054408,1764381039903,-150.0,0.00015375,2]
[395054409,1764381039913,-150.0,0.00015422,2]
[395054410,1764381039923,-847.03,0.00015434,2]
[395054412,1764381039932,-150.0,0.00015464,2]
[395054413,1764381039942,-2107.21242112,0.00015467,2]
[395054414,1764381039951,-150.0,0.00015484,2]
[395054415,1764381039960,-151.33,0.00015496,2]
[395054416,1764381039969,-150.0,0.00015499,2]
[395054417,1764381039978,-150.0,0.00015538,2]
[395054418,1764381039987,-150.0,0.00015538,2]
[395054419,1764381039996,-150.0,0.00015538,2]
[395054420,1764381040006,-150.0,0.00015577,2]
[395054421,1764381040015,-1036.78,0.00015586,2]
[395054422,1764381040025,-2896.70606073,0.00015593,2]
[395054423,1764381040034,-150.0,0.00015593,2]
[395054425,1764381040044,-150.0,0.00015613,2]
[395054426,1764381040055,-150.0,0.00015655,2]
[395054427,1764381040064,-2107.21242112,0.00015671,2]
[395054428,1764381040073,-150.0,0.00015702,2]
[395054429,1764381040081,-150.0,0.00015702,2]
[395054430,1764381040090,-150.0,0.00015702,2]
[395054431,1764381040101,-510.18003599,0.00015715,2]
[395054432,1764381040111,-150.0,0.00015733,2]
[395054433,1764381040120,-150.0,0.00015761,2]
[395054434,1764381040130,-784.36003968,0.00015802,2]
[395054435,1764381040138,-666.0,0.00015802,2]
[395054436,1764381040147,-267.46074303,0.00015802,2]
[395054437,1764381040156,-187.80455771,0.00015802,2]
[395054438,1764381040165,-500.0,0.00015802,2]
[395054439,1764381040174,-500.0,0.00015802,2]
[395054440,1764381040183,-500.0,0.00015802,2]
[395054441,1764381040193,-500.0,0.00015802,2]
[395054442,1764381040202,-500.0,0.00015802,2]
[395054443,1764381040212,-500.0,0.00015802,2]
[395054444,1764381040222,-500.0,0.00015802,2]
[395054445,1764381040235,-500.0,0.00015802,2]
[395054446,1764381040246,-174.69059397,0.00015802,2]
[395054447,1764381040257,-500.0,0.00015802,2]
[395054448,1764381040267,-500.0,0.00015802,2]
[395054449,1764381040279,-500.0,0.00015802,2]
[395054450,1764381040301,-500.0,0.00015802,2]
[395054451,1764381040316,-500.0,0.00015802,2]
[395054452,1764381040335,-500.0,0.00015802,2]
[395054453,1764381040356,-500.0,0.00015802,2]
[395054454,1764381040372,-500.0,0.00015802,2]
[395054455,1764381040391,-500.0,0.00015802,2]
[395054456,1764381040409,-620.0,0.00015802,2]
[395054457,1764381040430,-500.0,0.00015802,2]
[395054458,1764381040449,-500.0,0.00015802,2]
[395054459,1764381040464,-500.0,0.00015802,2]
[395054460,1764381040483,-500.0,0.00015802,2]
[395054461,1764381040498,-500.0,0.00015802,2]
[395054462,1764381040515,-500.0,0.00015802,2]
[395054463,1764381040528,-431.93103728,0.00015802,2]
[395054464,1764381040546,-151.0,0.00015802,2]
[395054465,1764381040560,-300.0,0.00015802,2]
[395054466,1764381040574,-171.15,0.00015809,2]
[395054467,1764381040589,-2896.70606073,0.00015811,2]
[395054468,1764381040613,-150.0,0.00015811,2]
[395054469,1764381040627,-150.0,0.00015811,2]
[395054470,1764381040642,-150.0,0.00015865,2]
[395054471,1764381040657,-2107.21242112,0.00015876,2]
[395054472,1764381040671,-150.0,0.00015889,2]
[395054473,1764381040686,-150.0,0.0001591,2]
[395054474,1764381040700,-150.0,0.0001592,2]
[395054475,1764381040715,-150.0,0.00015947,2]
[395054476,1764381040730,-150.0,0.00015967,2]
[395054477,1764381040745,-1613.0,0.00015982,2]
[395054479,1764381040759,-158.0,0.00016,2]
[395054480,1764381040773,-158.0,0.00016,2]
[395054481,1764381040788,-158.72,0.00016,2]
[395054482,1764381040803,-2896.70606073,0.00016028,2]
[395054483,1764381040818,-150.0,0.00016029,2]
[395054484,1764381040834,-150.0,0.00016029,2]
[395054485,1764381040849,-150.0,0.00016029,2]
[395054486,1764381040863,-150.0,0.00016045,2]
[395054487,1764381040879,-150.0,0.00016059,2]
[395054488,1764381040893,-2107.21242112,0.00016081,2]
[395054489,1764381040908,-1423.47859437,0.00016106,2]
[395054490,1764381040924,-151.0,0.00016116,2]
[395054491,1764381040939,-191.618654,0.00016116,2]
[395054492,1764381040953,-499.99,0.00016116,2]
[395054493,1764381040968,-150.99,0.00016116,2]
[395054494,1764381040982,-9999.99,0.00016116,2]
[395054495,1764381040996,-9999.99,0.00016116,2]
[395054496,1764381041010,-9999.99,0.00016116,2]
[395054497,1764381041025,-9999.99,0.00016116,2]
[395054498,1764381041041,-12381.77,0.00016116,2]
[395054499,1764381041057,-4546.54,0.00016116,2]
[395054500,1764381041074,-35430.66,0.00016116,2]
[395054501,1764381041088,-345.84,0.00016116,2]
[395054502,1764381041106,-150.0,0.00016123,2]
[395054503,1764381041120,-383.27,0.0001613,2]
[395054504,1764381041134,-1036.78,0.00016134,2]
[395054505,1764381041149,-150.0,0.00016138,2]
[395054506,1764381041164,-214.0,0.00016175,2]
[395054507,1764381041179,-1613.0,0.0001618,2]
[395054508,1764381041194,-150.0,0.00016193,2]
[395054509,1764381041209,-1613.0,0.00016195,2]
[395054510,1764381041223,-1613.0,0.00016197,2]
[395054511,1764381041237,-150.0,0.000162,2]
[395054512,1764381041251,-150.0,0.00016207,2]
[395054513,1764381041265,-500.0,0.00016218,2]
[395054514,1764381041280,-500.0,0.00016218,2]
[395054515,1764381041294,-500.0,0.00016218,2]
[395054516,1764381041309,-500.0,0.00016218,2]
[395054517,1764381041324,-2896.70606073,0.00016246,2]
[395054518,1764381041340,-150.0,0.00016247,2]
[395054519,1764381041358,-505.58503084,0.00016273,2]
[395054520,1764381041372,-171.30898415,0.00016273,2]
[395054521,1764381041388,-250.0,0.00016278,2]
[395054522,1764381041402,-300.0,0.00016278,2]
[395054523,1764381041417,-150.0,0.00016278,2]
[395054524,1764381041431,-250.0,0.00016278,2]
[395054525,1764381041445,-193.55661302,0.00016278,2]
[395054526,1764381041460,-300.0,0.00016278,2]
[395054527,1764381041475,-194.89169966,0.00016278,2]
[395054528,1764381041489,-1000.0,0.00016286,2]
[395054529,1764381041503,-2107.21242112,0.00016286,2]
[395054530,1764381041518,-1680.0,0.00016308,2]
[395054531,1764381041533,-344.0,0.00016308,2]
[395054532,1764381041547,-420.0,0.00016308,2]
[395054533,1764381041561,-666.0,0.0001635,2]
[395054534,1764381041577,-642.94,0.0001635,2]
[395054535,1764381041592,-294.68325926,0.00016356,2]
[395054536,1764381041606,-151.7486824,0.00016356,2]
[395054537,1764381041621,-151.29021682,0.00016356,2]
[395054538,1764381041635,-253.16616284,0.00016356,2]
[395054539,1764381041650,-155.36854543,0.00016356,2]
[395054540,1764381041665,-155.93893824,0.00016356,2]
[395054541,1764381041679,-152.2306007,0.00016356,2]
[395054542,1764381041694,-154.45706481,0.00016356,2]
[395054543,1764381041708,-1613.0,0.0001636,2]
[395054544,1764381041723,-10589.0030224,0.00016369,2]
[395054545,1764381041737,-2471.8596055,0.00016369,2]
[395054546,1764381041751,-2405.9922781,0.00016373,2]
[395054547,1764381041767,-326498.3490849,0.00016373,2]
[395054548,1764381041781,-5412.8150215,0.00016373,2]
[395054549,1764381041796,-153.456202,0.00016373,2]
[395054550,1764381041810,-151.0,0.00016373,2]
[395054551,1764381041825,-101.56836145,0.00016373,2]
[395054553,1764381044092,-53.73282055,0.00016373,2]
[395054554,1764381044101,-151.0,0.00016373,2]
[395054555,1764381044111,-152.266097,0.00016373,2]
[395054556,1764381044121,-151.0,0.00016373,2]
[395054557,1764381044133,-151.0,0.00016373,2]
[395054558,1764381044142,-1680.0,0.00016388,2]
[395054559,1764381044151,-510.18003599,0.00016392,2]
[395054560,1764381044160,-314.41349038,0.000164,2]
[395054561,1764381044169,-158.0,0.000164,2]
[395054562,1764381044179,-158.0,0.000164,2]
[395054563,1764381044188,-2221.92773,0.000164,2]
[395054564,1764381044197,-396.11004,0.000164,2]
[395054565,1764381044207,-1036.78,0.00016408,2]
[395054566,1764381044218,-501.54402529,0.00016409,2]
[395054567,1764381044227,-1601.25320241,0.00016419,2]
[395054568,1764381044236,-500.0,0.00016438,2]
[395054569,1764381044244,-500.0,0.00016438,2]
[395054570,1764381044253,-500.0,0.00016438,2]
[395054571,1764381044263,-563.89418676,0.00016438,2]
[395054572,1764381044271,-605.63539217,0.00016438,2]
[395054573,1764381044280,-151.33,0.00016457,2]
[395054574,1764381044289,-2896.70606073,0.00016464,2]
[395054575,1764381044298,-159.01047172,0.00016472,2]
[395054576,1764381044307,-500.0,0.00016472,2]
[395054577,1764381044317,-150.0,0.00016472,2]
[395054578,1764381044326,-500.0,0.00016472,2]
[395054579,1764381044335,-500.0,0.00016472,2]
[395054580,1764381044349,-500.0,0.00016472,2]
[395054581,1764381044357,-553.0,0.00016472,2]
[395054582,1764381044367,-500.0,0.00016472,2]
[395054583,1764381044376,-150.0,0.00016472,2]
[395054584,1764381044387,-208.99032631,0.00016472,2]
[395054585,1764381044396,-500.0,0.00016472,2]
[395054586,1764381044406,-500.0,0.00016472,2]
[395054587,1764381044416,-221.0,0.00016474,2]
[395054588,1764381044428,-150.0,0.00016474,2]
[395054589,1764381044437,-1193.0,0.00016474,2]
[395054590,1764381044447,-170.13,0.00016479,2]
[395054591,1764381044457,-1613.0,0.0001649,2]
[395054592,1764381044466,-2107.21242112,0.0001649,2]
[395054593,1764381044475,-4107.0,0.00016492,2]
[395054594,1764381044485,-1613.0,0.00016498,2]
[395054595,1764381044494,-2221.92774,0.0001652,2]
[395054596,1764381044503,-152.0,0.00016561,2]
[395054597,1764381044514,-152.0,0.00016561,2]
[395054598,1764381044523,-152.0,0.00016561,2]
[395054599,1764381044532,-152.0,0.00016561,2]
[395054600,1764381044542,-152.0,0.00016561,2]
[395054601,1764381044551,-152.0,0.00016561,2]
[395054602,1764381044560,-152.0,0.00016561,2]
[395054603,1764381044570,-152.0,0.00016561,2]
[395054604,1764381044579,-152.0,0.00016561,2]
[395054605,1764381044589,-152.0,0.00016561,2]
[395054606,1764381044599,-152.0,0.00016561,2]
[395054607,1764381044608,-152.0,0.00016561,2]
[395054608,1764381044618,-152.0,0.00016561,2]
[395054609,1764381044627,-152.0,0.00016561,2]
[395054610,1764381044637,-152.0,0.00016561,2]
[395054611,1764381044646,-152.0,0.00016561,2]
[395054612,1764381044655,-152.0,0.00016561,2]
[395054613,1764381044664,-152.0,0.00016561,2]
[395054614,1764381044673,-152.0,0.00016561,2]
[395054615,1764381044682,-28997.95164287,0.00016561,2]
[395054616,1764381044691,-500.0,0.00016562,2]
[395054617,1764381044701,-982.0,0.00016562,2]
[395054618,1764381044710,-284.87111554,0.00016563,2]
[395054619,1764381044720,-1136.57021784,0.0001657,2]
[395054620,1764381044730,-684.40163245,0.0001657,2]
[395054621,1764381044739,-247246.79322818,0.00016572,2]
[395054622,1764381044749,-3321.45492381,0.00016577,2]
[395054623,1764381044759,-243.300825,0.00016577,2]
[395054624,1764381044769,-403.69850673,0.00016579,2]
[395054625,1764381045038,-189.29118212,0.00016583,2]
[395054626,1764381045058,-61311.47158449,0.00016585,2]
[395054627,1764381045067,-11660.19650566,0.00016588,2]
[395054628,1764381045077,-1000.0,0.000166,2]
[395054629,1764381045086,-500.0,0.00016609,2]
[395054630,1764381045096,-150.0,0.00016609,2]
[395054631,1764381045105,-500.0,0.00016609,2]
[395054632,1764381045115,-500.0,0.00016609,2]
[395054633,1764381045124,-500.0,0.00016609,2]
[395054634,1764381045134,-553.0,0.00016609,2]
[395054635,1764381045143,-500.0,0.00016609,2]
[395054636,1764381045152,-500.0,0.00016609,2]
[395054637,1764381045163,-500.0,0.00016609,2]
[395054638,1764381045172,-1495.70074372,0.00016642,2]
[395054639,1764381045181,-1613.0,0.00016644,2]
[395054640,1764381045191,-151.0,0.00016644,2]
[395054641,1764381045200,-153.917634,0.00016644,2]
[395054642,1764381045210,-392.14216599,0.00016644,2]
[395054643,1764381045219,-193.79137912,0.00016644,2]
[395054644,1764381045228,-650.44247903,0.0001666,2]
[395054645,1764381045238,-1036.78,0.00016682,2]
[395054646,1764381045247,-2896.70606073,0.00016682,2]
[395054647,1764381045257,-352.10572654,0.00016682,2]
[395054648,1764381045266,-2107.21242112,0.00016695,2]
[395054649,1764381045275,-1059.46262941,0.00016717,2]
[395054650,1764381045284,-151.33,0.00016722,2]
[395054651,1764381045293,-1000.0,0.00016724,2]
[395054652,1764381045302,-1000.0,0.00016725,2]
[395054653,1764381045311,-1000.0,0.00016726,2]
[395054654,1764381045320,-300.0,0.00016729,2]
[395054655,1764381045329,-300.0,0.0001673,2]
[395054656,1764381045338,-1000.0,0.00016738,2]
[395054657,1764381045349,-1000.0,0.00016741,2]
[395054658,1764381045358,-1000.0,0.00016741,2]
[395054659,1764381045367,-500.0,0.00016746,2]
[395054660,1764381045376,-179.38602173,0.00016746,2]
[395054661,1764381045386,-502.29927757,0.00016746,2]
[395054662,1764381045395,-500.0,0.00016746,2]
[395054663,1764381045404,-507.67639133,0.00016746,2]
[395054664,1764381045413,-553.0,0.00016746,2]
[395054665,1764381045424,-517.06260032,0.00016746,2]
[395054666,1764381045433,-500.0,0.00016746,2]
[395054667,1764381045443,-511.32415705,0.00016746,2]
[395054668,1764381045452,-1000.0,0.00016748,2]
[395054669,1764381045462,-150.0,0.00016749,2]
[395054670,1764381045471,-300.0,0.0001675,2]
[395054671,1764381045480,-300.0,0.00016756,2]
[395054672,1764381045490,-150.0,0.00016758,2]
[395054673,1764381045499,-300.0,0.00016763,2]
[395054674,1764381045508,-1000.0,0.00016764,2]
[395054675,1764381045517,-300.0,0.00016765,2]
[395054676,1764381045527,-1000.0,0.00016766,2]
[395054677,1764381045536,-2221.92773,0.0001677,2]
[395054678,1764381045546,-300.0,0.00016777,2]
[395054679,1764381045556,-300.0,0.00016781,2]
[395054680,1764381045565,-300.0,0.00016783,2]
[395054681,1764381045575,-300.0,0.00016788,2]
[395054682,1764381045584,-1000.0,0.00016788,2]
[395054683,1764381045594,-300.0,0.0001679,2]
[395054684,1764381045604,-300.0,0.00016794,2]
[395054685,1764381045613,-300.0,0.00016795,2]
[395054686,1764381045623,-300.0,0.00016797,2]
[395054687,1764381045633,-1000.0,0.00016799,2]
[395054688,1764381045642,-1000.0,0.00016805,2]
[395054689,1764381045651,-1000.0,0.00016807,2]
[395054690,1764381045661,-1613.0,0.0001681,2]
[395054691,1764381045670,-1000.0,0.00016813,2]
[395054692,1764381045679,-300.0,0.00016814,2]
[395054693,1764381045689,-300.0,0.00016817,2]
[395054694,1764381045698,-168.0,0.00016821,2]
[395054695,1764381045708,-300.0,0.00016821,2]
[395054696,1764381045717,-300.0,0.00016822,2]
[395054697,1764381045727,-300.0,0.00016823,2]
[395054698,1764381045735,-168.0,0.00016824,2]
[395054699,1764381045745,-300.0,0.00016826,2]
[395054700,1764381045754,-1000.0,0.00016829,2]
[395054701,1764381045763,-168.0,0.00016829,2]
[395054702,1764381045773,-300.0,0.00016831,2]
[395054703,1764381045782,-1000.0,0.00016832,2]
[395054704,1764381045791,-300.0,0.00016837,2]
[395054705,1764381045800,-300.0,0.00016839,2]
[395054706,1764381045810,-300.0,0.00016841,2]
[395054707,1764381045819,-168.0,0.00016849,2]
[395054708,1764381045828,-300.0,0.00016849,2]
[395054709,1764381045838,-300.0,0.00016853,2]
[395054710,1764381045847,-1000.0,0.00016857,2]
[395054711,1764381045856,-300.0,0.00016858,2]
[395054712,1764381045865,-300.0,0.00016858,2]
[395054713,1764381045874,-1000.0,0.00016874,2]
[395054714,1764381045883,-1000.0,0.00016874,2]
[395054715,1764381045893,-300.0,0.00016881,2]
[395054716,1764381045902,-318.04186635,0.00016883,2]
[395054718,1764381045912,-500.0,0.00016883,2]
[395054719,1764381045921,-553.0,0.00016883,2]
[395054720,1764381045931,-237.75880231,0.00016883,2]
[395054721,1764381045940,-161.71183343,0.00016885,2]
[395054722,1764381045949,-1000.0,0.00016885,2]
[395054723,1764381045959,-150.0,0.00016889,2]
[395054724,1764381045968,-300.0,0.00016895,2]
[395054725,1764381045978,-666.0,0.00016898,2]
[395054726,1764381045988,-677.75966147,0.00016898,2]
[395054727,1764381045997,-300.0,0.000169,2]
[395054728,1764381046007,-300.0,0.000169,2]
[395054730,1764381046016,-300.0,0.000169,2]
[395054731,1764381046025,-300.0,0.000169,2]
[395054732,1764381046034,-300.0,0.000169,2]
[395054733,1764381046043,-300.0,0.000169,2]
[395054734,1764381046052,-300.0,0.000169,2]
[395054735,1764381046061,-300.0,0.000169,2]
[395054736,1764381046071,-300.0,0.000169,2]
[395054737,1764381046080,-300.0,0.000169,2]
[395054738,1764381046089,-300.0,0.000169,2]
[395054739,1764381046098,-300.0,0.000169,2]
[395054740,1764381046107,-300.0,0.000169,2]
[395054741,1764381046116,-300.0,0.000169,2]
[395054742,1764381046126,-300.0,0.000169,2]
[395054743,1764381046135,-300.0,0.000169,2]
[395054744,1764381046145,-300.0,0.000169,2]
[395054745,1764381046155,-300.0,0.000169,2]
[395054746,1764381046165,-300.0,0.000169,2]
[395054747,1764381046174,-300.0,0.000169,2]
[395054748,1764381046183,-151.0,0.000169,2]
[395054749,1764381046193,-304.0,0.000169,2]
[395054750,1764381046202,-839.0,0.000169,2]
[395054751,1764381046211,-354.0,0.000169,2]
[395054752,1764381046221,-287.07079724,0.000169,2]
[395054753,1764381046230,-2107.21242112,0.000169,2]
[395054754,1764381046239,-970.0,0.000169,2]
[395054755,1764381046248,-2896.70606073,0.000169,2]
[395054756,1764381046257,-205.96844425,0.000169,2]
[395054757,1764381046267,-151.0,0.000169,2]
[395054758,1764381046276,-1008.0,0.000169,2]
[395054759,1764381046286,-595.07469987,0.000169,2]
[395054760,1764381046295,-1000.0,0.00016903,2]
[395054761,1764381046304,-300.0,0.0001691,2]
[395054762,1764381046313,-300.0,0.00016911,2]
[395054763,1764381046322,-300.0,0.00016914,2]
[395054764,1764381046331,-300.0,0.00016915,2]
[395054765,1764381046344,-300.0,0.00016916,2]
[395054766,1764381046353,-300.0,0.00016917,2]
[395054767,1764381046362,-300.0,0.00016918,2]
[395054768,1764381046371,-300.0,0.00016919,2]
[395054769,1764381046381,-151.974975,0.00016919,2]
[395054770,1764381046391,-300.0,0.00016921,2]
[395054771,1764381046401,-307.29201946,0.00016921,2]
[395054772,1764381046411,-300.0,0.00016922,2]
[395054773,1764381046425,-300.0,0.00016923,2]
[395054774,1764381046434,-1000.0,0.00016925,2]
[395054775,1764381046443,-300.0,0.00016936,2]
[395054776,1764381046453,-300.0,0.00016937,2]
[395054777,1764381046462,-1000.0,0.00016937,2]
[395054778,1764381046471,-151.0,0.00016937,2]
[395054779,1764381046483,-300.0,0.00016939,2]
[395054780,1764381046492,-1000.0,0.00016939,2]
[395054781,1764381046502,-300.0,0.00016941,2]
[395054782,1764381046512,-300.0,0.00016944,2]
[395054783,1764381046521,-300.0,0.00016945,2]
[395054784,1764381046530,-1000.0,0.0001695,2]
[395054785,1764381046540,-5888.0,0.00016955,2]
[395054786,1764381046549,-300.0,0.00016955,2]
[395054787,1764381046559,-1036.81162412,0.00016956,2]
[395054788,1764381046568,-1000.0,0.00016957,2]
[395054789,1764381046578,-1000.0,0.00016962,2]
[395054790,1764381046587,-168.0,0.00016963,2]
[395054791,1764381046597,-300.0,0.00016966,2]
[395054792,1764381046606,-300.0,0.00016967,2]
[395054793,1764381046615,-300.0,0.00016969,2]
[395054794,1764381046625,-1000.0,0.00016969,2]
[395054795,1764381046635,-1000.0,0.0001697,2]
[395054796,1764381046644,-500.0,0.0001697,2]
[395054797,1764381046654,-1000.0,0.0001697,2]
[395054798,1764381046663,-500.0,0.0001697,2]
[395054799,1764381046673,-1000.0,0.0001697,2]
[395054800,1764381046683,-500.0,0.0001697,2]
[395054801,1764381046692,-1000.0,0.0001697,2]
[395054802,1764381046703,-500.0,0.0001697,2]
[395054803,1764381046712,-1000.0,0.0001697,2]
[395054804,1764381046721,-500.0,0.0001697,2]
[395054805,1764381046731,-1000.0,0.0001697,2]
[395054806,1764381046742,-1000.0,0.0001697,2]
[395054807,1764381046751,-500.0,0.0001697,2]
[395054808,1764381046761,-500.0,0.0001697,2]
[395054809,1764381046770,-1000.0,0.0001697,2]
[395054810,1764381046781,-300.0,0.00016971,2]
[395054811,1764381046790,-300.0,0.00016971,2]
[395054812,1764381046800,-1000.0,0.00016972,2]
[395054813,1764381046809,-168.80860309,0.00016973,2]
[395054814,1764381046819,-501.17609178,0.00016973,2]
[395054815,1764381046829,-500.60490188,0.00016973,2]
[395054816,1764381046838,-500.0,0.00016973,2]
[395054817,1764381046847,-500.86249861,0.00016973,2]
[395054818,1764381046857,-500.0,0.00016973,2]
[395054819,1764381046866,-598.51138711,0.00016973,2]
[395054820,1764381046876,-159.99691032,0.00016973,2]
[395054821,1764381046885,-500.84864969,0.00016973,2]
[395054822,1764381046895,-500.0,0.00016973,2]
[395054823,1764381046904,-500.0,0.00016973,2]
[395054824,1764381046914,-501.85926028,0.00016973,2]
[395054825,1764381046923,-500.0,0.00016973,2]
[395054826,1764381046931,-160.04815265,0.00016973,2]
[395054827,1764381046940,-502.19807577,0.00016973,2]
[395054828,1764381046949,-230.8313981,0.00016973,2]
[395054829,1764381046958,-500.0,0.00016973,2]
[395054830,1764381046967,-160.05006071,0.00016973,2]
[395054831,1764381046977,-500.0,0.00016973,2]
[395054832,1764381046986,-500.0,0.00016973,2]
[395054833,1764381046995,-502.99418287,0.00016973,2]
[395054834,1764381047004,-865.35739235,0.00016973,2]